{"text_format":"1","workbook":"xlsx","n_sheets":5,"sheets":["Request for Cash","Consolidated Support","CAPER FY23","CAPER FY23 Cum","CAPERList"],"not_rendered":{"charts":0,"images":1,"macros":1,"external_links":0,"defined_names":6,"comments":2,"pivot_tables":0},"unopened":[],"bounds":{"document_bytes":16777216,"sheet_cells":100000,"rows_first":2000,"rows_last":500,"rows_between":2000,"halvings":0,"cell_chars":16384,"cell_head_chars":4096},"cells_cut":0,"cells_raw":0,"read":"whole","date_system":"1900"}

{"sheet":"Request for Cash","index":0,"n_rows":73,"n_cols":18,"rows_kept":73,"cut":false,"hidden":false,"merged":[[58,3,58,5],[59,3,59,5],[60,3,60,5],[51,10,51,12],[52,10,52,12],[52,13,52,15],[57,3,57,5],[51,3,51,4],[52,3,52,4],[51,5,51,6],[52,5,52,6],[51,7,51,9],[52,7,52,9],[10,14,10,17],[7,14,7,17],[9,14,9,17],[10,2,10,6],[9,2,9,6],[7,2,7,6],[8,2,8,6],[11,1,11,17],[28,1,28,17],[51,13,51,15],[44,4,44,8],[45,4,45,8],[23,1,23,17],[22,1,22,17],[13,2,13,4],[14,2,14,4],[38,4,38,6],[24,1,24,17],[35,2,35,6],[26,1,27,17],[37,4,37,6],[4,14,4,17],[5,14,5,17],[5,12,5,13],[7,7,7,13],[8,14,8,17],[6,12,6,13],[3,2,3,6],[5,2,5,6],[6,2,6,6],[4,1,4,6],[5,7,5,8],[6,7,6,8],[4,7,4,12],[5,9,5,11],[6,9,6,11],[52,1,52,2],[52,16,52,17],[29,1,30,17],[34,16,34,17],[35,16,35,17],[50,1,50,17],[51,1,51,2],[51,16,51,17],[42,1,42,17],[34,2,34,6],[34,9,34,14],[38,11,38,12],[46,4,46,8],[47,4,47,8],[48,4,48,8],[49,4,49,8]]}
[null,"Mississippi Home Corporation"]
[null,"Request for Cash"]
[]
[null,"Program:","HOME-ARP Supportive Services"]
[null,"Section A:  General Information",null,null,null,null,null,"Section B:  Project Information",null,null,null,null,null,null,"Section C:  RFC Information"]
[null,"Recipient",null,null,null,null,null,"Grant No.",null,"Contract No.",null,null,"Contract Expiration Date",null,"Request No."]
[null,"Mailing Address",{"$f":"LOOKUP(+$C$6,D59:D75,G59:G75)","v":{"$error":"#N/A"}},null,null,null,null,{"$f":"LOOKUP(+$C$6,D59:D75,O59:O75)","v":{"$error":"#N/A"}},null,{"$f":"LOOKUP(+$C$6,D59:D75,Q59:Q75)","v":{"$error":"#N/A"}},null,null,{"$f":"LOOKUP(C6,D59:R76,R59:R76)","v":{"$error":"#N/A"}},null,null,null,1]
[null,"Street Address",{"$f":"LOOKUP(+$C$6,D59:D75,I59:I75)","v":{"$error":"#N/A"}},null,null,null,null,"Services Rendered",null,null,null,null,null,null,"Total Request Amount"]
[null,"City, State Zip",{"$f":"LOOKUP(+$C$6,D59:D75,K59:K75)","v":{"$error":"#N/A"}},null,null,null,null,null,"From",null,null,null,"To",null,{"$f":"K21","v":0}]
[null,"Telephone No.",{"$f":"LOOKUP(+$C$6,D59:D75,M59:M75)","v":{"$error":"#N/A"}},null,null,null,null,null,null,null,"Thru",null,null,null,"Authorization Level"]
[null,null,null,null,null,null,null,null,null,null,null,null,null,null,{"$f":"_xlfn.IFS(O9<15000,1,O9>15000<75000,2,O9>75000,3)","v":1}]
[null,"Section D:  Request Per Activity"]
[null,null,null,"Activity Description",null,null," Budget Amount",null,"Prior Disbursements",null,"This Request",null,"Remaining Balance",null,"# of Individuals Served",null,"Activity Number"]
[null,1,{"$f":"+'Consolidated Support'!B49","v":"McKinney-Vento Supportive Services"},null,null,null,{"$f":"+'Consolidated Support'!L49","v":0},null,{"$f":"+'Consolidated Support'!M11","v":0},null,{"$f":"+'Consolidated Support'!J49","v":0},null,{"$f":"+G14-I14-K14","v":0}]
[null,2,{"$f":"'Consolidated Support'!B51","v":"Homelessness Prevention Services "},null,null,null,{"$f":"'Consolidated Support'!L51","v":0},null,{"$f":"+'Consolidated Support'!M51","v":0},null,{"$f":"+'Consolidated Support'!J86","v":0},null,0]
[null,16,null,null,null,null,null,null,null,null,null,null,{"$f":"+G17-I17-K17","v":0}]
[null,17,null,null,null,null,null,null,null,null,null,null,0]
[null,18,null,null,null,null,null,null,null,null,null,null,0]
[null,20]
[null,20,null,null,null,null,null,null,null,null,null,null,{"$f":"+G20-I20-K20","v":0}]
[null,null,null,"Total:",null,null,{"$f":"SUM(G14:G20)","v":0},null,{"$f":"SUM(I14:I20)","v":0},null,{"$f":"SUM(K14:K20)","v":0},null,{"$f":"SUM(M14:M20)","v":0},null,{"$f":"SUM(O14:O15)","v":0}]
[]
[null,"Section E:  Required Accomplishment Narrative "]
[]
[null,"Section F:  Certification"]
[]
[null,"     I HEREBY CERTIFY THAT (a) the services covered by this request have not been received from the Federal Government/State Government or expended for such services under any other contract agreement or grant; (b) the amount requested will be expended for allowable costs / expenditures under the terms of the contract agreement or grant; (c) the amount requested herein does not exceed the total funds obligated by contract; and (d) the funds are requested for only immediate disbursements.  "]
[]
[null,"    By signing this report, I certify to the best of my knowledge and belief that the report is true, complete, and accurate, and the expenditures, disbursements and cash receipts are for the purposes and objectives set forth in the terms and conditions of the Federal award.  I am aware that any false, fictitious, or fraudulent information, or the omission of any material fact, may subject me to criminal, civil or administrative penalties for fraud, false statements, false claims or otherwise (U.S. Code Title 18, Section 1001 and Title 31, Sections 3729-3730 and 3801-3812)."]
[null,"   I Hereby Certify That the goods sold and/or services rendered have been delivered and/or performed in good order within the time listed above and are in compliance with all statutory requirements and regulations.  I certify that this request does not include any advances or funds for future obligations. "]
[]
[null,"Is this your final request for cash on this contract?",null,null,null,false,"Yes"]
[null,null,null,null,null,false,"No"]
[null,null,"Prepared By:",null,null,null,null,null,null,"Approved By:",null,{"$f":"C6","v":"00:00:00"}]
[]
[null,null,"Printed Name and Title of Preparer",null,null,null,null,null,null,"Printed Name and Title of Authorized Official:"]
[]
[null,null,"Preparer's Telephone No.",null,null,null,null,null,null,"Authorized Signature:"]
[null,null,"Date Prepared:",null,null,null,null,null,null,"Date Signed:"]
[]
[]
[]
[null,"MHC USE ONLY"]
[]
[null,null,null,"Processed By:",null,null,null,null,null,null,"Date:"]
[null,null,null,"1st Level Approval:","Signature, Authorized MHC Representative",null,null,null,null,null,"Date:"]
[null,null,null,"2nd Level Approval","Signature, Authorized MHC Representative",null,null,null,null,null,"Date:"]
[null,null,null,"3rd Level Approval:","Signature, Authorized MHC Representative",null,null,null,null,null,"Date:"]
[null,null,null,"IDIS Approved By:","Signature, Authorized MHC Representative",null,null,null,null,null,"Date:"]
[null,null,null,null,"Signature, Authorized MHC Representative"]
[null,"ACCOUNTING USE ONLY"]
[null,"IDIS Voucher Number",null,"Vendor Number",null,"Issue/Series",null,"Fund/Sub-Fund",null,null,"Servicer",null,null,"Processed By",null,null,"Date"]
[]
[]
[]
[]
[]
[null,null,null,"Applicant",null,null,"Mailing Address",null,"Street Address",null,"City",null,"Phone #",null,"Grant No.",null,"Contract No.","Contract Exp"]
[null,null,null,"Aids Services Coalition",null,null,"P. O. Box 169",null,"121 College Street",null,"Hattiesburg, MS  39403",null,6014504286,null,2021,null,"1236-M21-ARSP-280-001","2025-08-31"]
[null,null,null,"Back Bay Mission",null,null,null,null,"1012 Division Street",null,"Biloxi, MS 39530",null,"(228) 432-0301",null,2021,null,"1236-M21-ARSP-280-002","2025-08-31"]
[null,null,null,"Bolivar County Community Action Agency",null,null,null,null,"810 E Sunflower Rd. Suite",null,"Cleveland, MS 38732",null,"662-846-1491",null,2021,null,"1236-M21-ARSP-280-003","2025-08-31"]
[null,null,null,"Community Care Network ",null,null,null,null,"7400 Fountainblue Road",null,"Ocean Springs, MS 39564",null,"(601) 932-4208",null,2021,null,"1236-M21-ARSP-280-004","2025-08-31"]
[null,null,null,"Community Counseling Services",null,null,"P.O. Box 2590",null,"222 Mary Holmes Dr. ",null,"West Point, MS 39773",null,null,null,2021,null,"1236-M21-ARSP-280-005","2025-08-31"]
[null,null,null,"Community Development Inc. ",null,null,"P.O.Box 689",null,"411 Oak Street ",null,"Richton, MS 39476",null,"(601) 788-6704",null,2021,null,"1236-M21-ARSP-280-006","2025-08-31"]
[null,null,null,"Gulf Coast Center for Non-Violence ",null,null,"P.O.Box 333",null,null,null,"Biloxi, MS 39533",null,"(228) 436-3809",null,2021,null,"1236-M21-ARSP-280-007","2025-08-31"]
[null,null,null,"Hancock Resource Center ",null,null,null,null,"454 Highway 90",null,"Waveland, Ms 39576",null,null,null,2021,null,"1236-M21-ARSP-280-008","2025-08-31"]
[null,null,null,"Mississippi Center for Police & Sheriffs",null,null,null,null,"3363 Highway 61 South ",null,"Vicksburg, MS 39180",null,null,null,2021,null,"1236-M21-ARSP-280-009","2025-08-31"]
[null,null,null,"Mississippi Center for Violence Prevention",null,null,"P.O. Box 6279",null,null,null,"Pearl, MS 39228",null,null,null,2021,null,"1236-M21-ARSP-280-010","2025-08-31"]
[null,null,null,"Multi County Community Agency ",null,null,"P.O. Box 905",null,"2906 St Paul St.",null," Meridian MS 39301",null,null,null,2021,null,"1236-M21-ARSP-280-011","2025-08-31"]
[null,null,null,"S.A.F.E Inc",null,null,"P.O.Box 985",null,null,null,"Tupelo, MS 38804",null,"(662) 841-4838",null,2021,null,"1236-M21-ARSP-280-012","2025-08-31"]
[null,null,null,"Stewpot ",null,null,"P.O.Box 3610",null,"1100 W Capitol St",null,"Jackson, MS 39203",null,null,null,2021,null,"1236-M21-ARSP-280-013","2025-08-31"]
[null,null,null,"Voices of Calvary",null,null,null,null,"531 Capitol Street",null,"Jackson, MS 39203",null,null,null,2021,null,"1236-M21-ARSP-280-014","2025-08-31"]
[null,null,null,"WWISCAA, Inc",null,null,null,null,"1538 Old Leland Rd",null,"Greenville, MS 38701",null,"(662) 378-5857",null,2021,null,"1236-M21-ARSP-280-015","2025-08-31"]

{"sheet":"Consolidated Support","index":1,"n_rows":107,"n_cols":14,"rows_kept":107,"cut":false,"hidden":false,"merged":[[0,0,0,13],[1,0,1,13],[88,1,88,4],[105,10,105,11],[95,0,97,13],[99,0,100,13],[93,8,93,9],[92,8,92,9],[103,10,103,11],[104,10,104,11],[101,0,101,13],[90,4,90,5],[6,1,6,2],[103,1,103,2],[106,10,106,11],[120,10,120,11],[104,1,104,2],[120,1,120,2],[105,1,105,2]]}
["Mississippi Home Corporation"]
[" Consolidated Support Sheet"]
[]
[]
[]
["Program:",{"$f":"+'Request for Cash'!C4","v":"HOME-ARP Supportive Services"}]
["Recipient:",{"$f":"+'Request for Cash'!C6","v":0},null,null,null,null,null,null,null,null,"Contract Number:",{"$f":"+'Request for Cash'!J7","v":{"$error":"#N/A"}}]
["RFC No.:",{"$f":"'Request for Cash'!Q7","v":1},null,null,null,null,null,null,null,null,"Total Amount Requested:",{"$f":"+'Request for Cash'!K21","v":0}]
[]
["AWARDS ID","Vendor","Line Items","CAPER Category","Invoice Date","Invoice # / Check #","Date Expense Started","Date Expense Ended","Total Invoice","Amount of This Request","Appendix","Amount Budgeted","Amount Requested to Date","Balance"]
[null,"McKinney-Vento Supportive Services",null,null,null,null,null,null,null,null,null,0,null,{"$f":"+L11-M11","v":0}]
[null,null,null,null,null,null,null,null,null,null,null,null,{"$f":"+J12","v":0},{"$f":"+L12-M12","v":0}]
[null,null,null,null,null,null,null,null,null,null,null,null,{"$f":"+J13","v":0},0]
[null,null,null,null,null,null,null,null,null,null,null,null,0,0]
[null,null,null,null,null,null,null,null,null,null,null,null,0,0]
[null,null,null,null,null,null,null,null,null,null,null,null,0,0]
[null,null,null,null,null,null,null,null,null,null,null,null,0,0]
[null,null,null,null,null,null,null,null,null,null,null,null,0,0]
[null,null,null,null,null,null,null,null,null,null,null,null,0,0]
[null,null,null,null,null,null,null,null,null,null,null,null,0,0]
[null,null,null,null,null,null,null,null,null,null,null,null,0,0]
[null,null,null,null,null,null,null,null,null,null,null,null,0,0]
[null,null,null,null,null,null,null,null,null,null,null,null,0,0]
[null,null,null,null,null,null,null,null,null,null,null,null,0,0]
[null,null,null,null,null,null,null,null,null,null,null,null,0,0]
[null,null,null,null,null,null,null,null,null,null,null,null,0,0]
[null,null,null,null,null,null,null,null,null,null,null,null,0,0]
[null,null,null,null,null,null,null,null,null,null,null,null,0,0]
[null,null,null,null,null,null,null,null,null,null,null,null,0,0]
[null,null,null,null,null,null,null,null,null,null,null,null,0,0]
[null,null,null,null,null,null,null,null,null,null,null,null,0,0]
[null,null,null,null,null,null,null,null,null,null,null,null,0,0]
[null,null,null,null,null,null,null,null,null,null,null,null,0,0]
[null,null,null,null,null,null,null,null,null,null,null,null,0,0]
[null,null,null,null,null,null,null,null,null,null,null,null,0,0]
[null,null,null,null,null,null,null,null,null,null,null,null,0,0]
[null,null,null,null,null,null,null,null,null,null,null,null,0,0]
[null,null,null,null,null,null,null,null,null,null,null,null,0,0]
[null,null,null,null,null,null,null,null,null,null,null,null,0,0]
[null,null,null,null,null,null,null,null,null,null,null,null,0,0]
[null,null,null,null,null,null,null,null,null,null,null,null,0,0]
[null,null,null,null,null,null,null,null,null,null,null,null,0,0]
[null,null,null,null,null,null,null,null,null,null,null,null,0,0]
[null,null,null,null,null,null,null,null,null,null,null,null,0,0]
[null,null,null,null,null,null,null,null,null,null,null,null,0,0]
[null,null,null,null,null,null,null,null,null,null,null,null,0,0]
[null,null,null,null,null,null,null,null,null,null,null,null,0,0]
[null,null,null,null,null,null,null,null,null,null,null,null,0,0]
[null,{"$f":"+B11","v":"McKinney-Vento Supportive Services"},null,null,null,null,null,null,{"$f":"SUM(I11:I48)","v":0},0,null,0,0,0]
[]
[null,"Homelessness Prevention Services ",null,null,null,null,null,null,null,null,null,0,0,{"$f":"+L51-M51","v":0}]
[null,null,null,null,null,null,null,null,null,null,null,null,{"$f":"+J52","v":0},0]
[null,null,null,null,null,null,null,null,null,null,null,null,0,0]
[null,null,null,null,null,null,null,null,null,null,null,null,0,0]
[null,null,null,null,null,null,null,null,null,null,null,null,0,0]
[null,null,null,null,null,null,null,null,null,null,null,null,0,0]
[null,null,null,null,null,null,null,null,null,null,null,null,0,0]
[null,null,null,null,null,null,null,null,null,null,null,null,0,0]
[null,null,null,null,null,null,null,null,null,null,null,null,0,0]
[null,null,null,null,null,null,null,null,null,null,null,null,0,0]
[null,null,null,null,null,null,null,null,null,null,null,null,0,0]
[null,null,null,null,null,null,null,null,null,null,null,null,0,0]
[null,null,null,null,null,null,null,null,null,null,null,null,0,0]
[null,null,null,null,null,null,null,null,null,null,null,null,0,0]
[null,null,null,null,null,null,null,null,null,null,null,null,0,0]
[null,null,null,null,null,null,null,null,null,null,null,null,0,0]
[null,null,null,null,null,null,null,null,null,null,null,null,0,0]
[null,null,null,null,null,null,null,null,null,null,null,null,0,0]
[null,null,null,null,null,null,null,null,null,null,null,null,0,0]
[null,null,null,null,null,null,null,null,null,null,null,null,0,0]
[null,null,null,null,null,null,null,null,null,null,null,null,0,0]
[null,null,null,null,null,null,null,null,null,null,null,null,0,0]
[null,null,null,null,null,null,null,null,null,null,null,null,0,0]
[null,null,null,null,null,null,null,null,null,null,null,null,0,0]
[null,null,null,null,null,null,null,null,null,null,null,null,0,0]
[null,null,null,null,null,null,null,null,null,null,null,null,0,0]
[null,null,null,null,null,null,null,null,null,null,null,null,0,0]
[null,null,null,null,null,null,null,null,null,null,null,null,0,0]
[null,null,null,null,null,null,null,null,null,null,null,null,0,0]
[null,null,null,null,null,null,null,null,null,null,null,null,0,0]
[null,null,null,null,null,null,null,null,null,null,null,null,0,0]
[null,null,null,null,null,null,null,null,null,null,null,null,0,0]
[null,null,null,null,null,null,null,null,null,null,null,null,0,0]
[null,null,null,null,null,null,null,null,null,null,null,null,0,0]
[null,null,null,null,null,null,null,null,null,null,null,null,0,0]
[null,{"$f":"+B51","v":"Homelessness Prevention Services "},null,null,null,null,null,null,{"$f":"SUM(I51:I85)","v":0},0,null,0,0,0]
[]
[]
[null,"GRAND TOTAL",null,null,null,null,null,null,{"$f":"I86+I49","v":0},{"$f":"J86+J49","v":0},null,{"$f":"L86+L49","v":0},{"$f":"M86+M49","v":0},{"$f":"N86+N49","v":0}]
[]
[null,"Services Rendered - Beginning:",{"$f":"'Request for Cash'!I10","v":"00:00:00"},"Thru",{"$f":"+'Request for Cash'!M10","v":"00:00:00"},null,null,null,"Total Expenditures:",{"$f":"M89","v":0}]
[]
[]
[]
[]
["   I Hereby Certify That (a) the services covered by this request have not been received from the Federal / State Government or expended for such services under any other contract agreement or grant; (b) the amount requested will be expended for allowable costs / expenditures under the terms of the contract agreement or grant; (c) the amount requested herein does not exceed the total funds obligated by contract; and (d) the funds are requested for only immediate disbursements."]
[]
[]
[]
["   I Hereby Certify That the goods sold and/or services rendered have been delivered and/or performed in good order within the time listed above and are in compliance with all statutory requirements and regulations.  I certify that this request does not include any advances or funds for future obligations."]
[]
[" By signing this report, I certify to the best of my knowledge and belief that the report is true, complete, and accurate, and the expenditures, disbursements and cash receipts are for the purposes and objectives set forth in the terms and conditions of the Federal award.  I am aware that any false, fictitious, or fraudulent information, or the omission of any material fact, may subject me to criminal, civil or administrative penalties for fraud, false statements, false claims or otherwise (U.S. Code Title 18, Section 1001 and Title 31, Sections 3729-3730 and 3801-3812)."]
[]
[null,null,null,"Date:",{"$f":"'Request for Cash'!L39","v":"00:00:00"},null,null,null,null,null,{"$f":"IF('Request for Cash'!C35=\"\",\"\",'Request for Cash'!C35)","v":""}]
[null,"Signature of Authorized Official ",null,null,null,null,null,null,null,null," Prepared By"]
[null,{"$f":"IF('Request for Cash'!J35=\"\",\"\",'Request for Cash'!J35)","v":""},null,null,null," ",null,null,null,null,{"$f":"IF('Request for Cash'!E38=\"\",\"\",'Request for Cash'!E38)","v":""}]
[null,"Typed Name and Title of Authorized Official",null,null,null,null,null,null,null,null,"Preparer's Telephone No."]

{"sheet":"CAPER FY23","index":2,"n_rows":21,"n_cols":3,"rows_kept":21,"cut":false,"hidden":false,"merged":[[7,0,7,2],[13,0,13,2],[5,1,5,2],[0,0,0,2],[1,1,1,2],[2,1,2,2],[3,1,3,2],[4,1,4,2]]}
[" Financial Summary Report (CAPER)"]
["Sub recipient",{"$f":"+'Request for Cash'!C6","v":0}]
["Contract Number",{"$f":"+'Request for Cash'!J7","v":{"$error":"#N/A"}}]
["Request for Cash Number",{"$f":"'Request for Cash'!O7","v":0}]
["Reporting Period From",{"$f":"'Request for Cash'!I10","v":"00:00:00"}]
["                            To",{"$f":"'Request for Cash'!M10","v":"00:00:00"}]
[null,null,"HOME-ARP Expenditures by Supportive Services Categories "]
["McKinney-Vento Supportive Services"]
["McKinney-Vento Case Management ",null,{"$f":"SUMIF('Consolidated Support'!D12:D48,\"MVCM*\", 'Consolidated Support'!M12:M48)","v":0}]
["McKinney-Vento Essential Services ",null,{"$f":"SUMIF('Consolidated Support'!D12:D48,\"MVES*\", 'Consolidated Support'!M12:M48)","v":0}]
["McKinney-Vento Outreach ",null,{"$f":"SUMIF('Consolidated Support'!D12:D48,\"MVOR*\", 'Consolidated Support'!M12:M48)","v":0}]
["Subtotal McKinney-Vento",null,{"$f":"SUM(C9:C11)","v":0}]
[]
["Homelessness Prevention Services"]
["HP Housing Rental Assistance",null,{"$f":"SUMIF('Consolidated Support'!D52:D85,\"HPRA*\", 'Consolidated Support'!M52:M85)","v":0}]
["HP Housing Financial Assistance",null,{"$f":"SUMIF('Consolidated Support'!D52:D85,\"HPFA*\", 'Consolidated Support'!M52:M85)","v":0}]
["HP Stabilization Services - Services",null,{"$f":"SUMIF('Consolidated Support'!D52:D85,\"HPSS*\", 'Consolidated Support'!M52:M85)","v":0}]
["Subtotal Homelessness Prevention Services",null,{"$f":"SUM(C15:C17)","v":0}]
[]
[]
["Total Supportive Services Funds Expended",null,{"$f":"C12+C18","v":0}]

{"sheet":"CAPER FY23 Cum","index":3,"n_rows":20,"n_cols":5,"rows_kept":20,"cut":false,"hidden":false,"merged":[[5,1,5,2],[7,0,7,2],[13,0,13,2],[0,0,0,2],[1,1,1,2],[2,1,2,2],[3,1,3,2],[4,1,4,2]]}
["Cumulative Financial Summary Report (CAPER)"]
["Sub recipient",{"$f":"IF('Request for Cash'!C6=\"\",\"\",'Request for Cash'!C6)","v":""}]
["Contract Number",{"$f":"'Request for Cash'!J7","v":{"$error":"#N/A"}}]
["Request for Cash Number",{"$f":"'Consolidated Support'!B8","v":1}]
["Reporting Period From",{"$f":"'Request for Cash'!I10","v":"00:00:00"}]
["                            To",{"$f":"'Request for Cash'!M10","v":"00:00:00"}]
[null,null,"HOME-ARP Expenditures by Supportive Services Categories "]
["McKinney-Vento Supportive Services"]
["McKinney-Vento Case Management ",null,0]
["McKinney-Vento Essential Services ",null,0]
["McKinney-Vento Outreach ",null,0]
["Subtotal McKinney-Vento",null,{"$f":"SUM(C9:C11)","v":0}]
[]
["Homelessness Prevention Services"]
["HP Housing Rental Assistance",null,0]
["HP Housing Financial Assistance",null,0]
["HP Stabilization Services - Services",null,0]
["Subtotal Homelessness Prevention Services",null,0,null,{"$f":"C18+'CAPER FY23'!C18","v":0}]
[]
["Total Supportive Services Funds Expended",null,{"$f":"C12+C18","v":0}]

{"sheet":"CAPERList","index":4,"n_rows":27,"n_cols":6,"rows_kept":27,"cut":false,"hidden":false,"merged":[]}
[]
["Category","SubCategory1","Category-SubCategory1","SubCategory2",null,"Eligible Items"]
["McKinney-Vento Supportive Services","Case management Services ","MVCM","MVCM-Case management",null,"Case management"]
["McKinney-Vento Supportive Services","Essential Services ","MVES","MVES-Transportation",null,"Transportation"]
["McKinney-Vento Supportive Services","Case management Services ","MVCM","MVCM- Indirect Costs",null,"Indirect Cost"]
["McKinney-Vento Supportive Services","Essential Services ","MVOR","MVOR- Outreach",null,"Outreach"]
["McKinney-Vento Supportive Services","Essential Services ","MVES","MVES- Education Services",null,"Education Services"]
["McKinney-Vento Supportive Services","Essential Services ","MVES","MVES- Employment Assistance & Job Training",null,"Employment Assistance & Job Training"]
["McKinney-Vento Supportive Services","Essential Services ","MVES","MVES- Outpatient Health Services",null,"Outpatient Health Services"]
["McKinney-Vento Supportive Services","Essential Services ","MVES","MVES- Legal Services",null,"Legal Services"]
["McKinney-Vento Supportive Services","Essential Services ","MVES","MVES- Life Skills Training",null,"Life Skills Training"]
["McKinney-Vento Supportive Services","Essential Services ","MVES","MVES- Mental Health Services",null,"Mental Health Services"]
["McKinney-Vento Supportive Services","Essential Services ","MVES","MVES- Substance Abuse Treatment Services",null,"Substance Abuse Treatment Services"]
["McKinney-Vento Supportive Services","Essential Services ","MVES","MVES-Food",null,"Food"]
["McKinney-Vento Supportive Services","Essential Services ","MVES","MVES- Child Care",null,"Rent"]
["McKinney-Vento Supportive Services","Essential Services ","MVES","MVES-Mediation ",null,"Mediation "]
["McKinney-Vento Supportive Services","Essential Services ","MVES","MVES-Landlord/Tenant/Liaison ",null,"Landlord Liaison "]
["Homelessness Prevention Services","Housing Rental Assistance ","HPRA","HPRA-Rental payment",null,"Rental payment"]
["Homelessness Prevention Services","Housing Rental Assistance ","HPRA","HPRA-Rental arrearage payment",null,"Rental arrearage payment"]
["Homelessness Prevention Services","Housing Financial Assistance ","HPFA","HPFA-Rental application fees",null,"Rental application fees"]
["Homelessness Prevention Services","Housing Financial Assistance ","HPFA","HPFA-Security deposits",null,"Security deposits"]
["Homelessness Prevention Services","Housing Financial Assistance ","HPFA","HPFA-First and Last month rent",null,"Last month rent"]
["Homelessness Prevention Services","Housing Financial Assistance ","HPFA","HPFA-Utility deposit",null,"Utility deposit"]
["Homelessness Prevention Services","Housing Financial Assistance ","HPFA","HPFA-Utility payment",null,"Utility payment"]
["Homelessness Prevention Services","Housing Financial Assistance ","HPFA","HPFA-Utility arrearage",null,"Utility arrearage "]
["Homelessness Prevention Services","Housing Financial Assistance ","HPFA","HPFA-Moving costs",null,"Moving costs"]
["Homelessness Prevention Services","Stabilization Services","HPSS","HPSS-Housing Search & Counseling ",null,"Housing Search & Counseling "]